bitfinex/quotes_ETHUSD_20220215
["timestamp","ask_amount","ask_price","bid_price","bid_amount"]
[1644954621583,0.3,3119.8,3119.1,0.80134]
[1644954622684,0.80137,3119.6,3119.1,1.60276]
[1644954622931,0.80137,3119.6,3119.1,0.80134]
[1644954623930,1.6028054,3119.6,3119.1,0.80134]
[1644954624330,0.80142,3119.5,3119.1,0.80134]
[1644954625934,0.80142,3119.5,3119.1,1.60276]
[1644954626133,1.6028728,3119.5,3119.1,0.80134]
[1644954626790,0.001,3120.0,3119.1,1.00285385]
[1644954626981,0.001,3120.0,3119.3,0.22582042]
[1644954627179,0.001,3120.0,3119.4,0.80124]
[1644954627579,0.001,3120.0,3119.4,1.26424]
[1644954627781,0.001,3120.0,3119.4,2.86676]
[1644954627980,0.001,3120.0,3119.5,0.80126]
[1644954628282,0.001,3120.0,3119.5,0.80125]
[1644954628681,1.60252,3120.2,3119.5,0.80125]
[1644954628682,1.55619013,3120.2,3119.5,0.80125]
[1644954628982,0.80121,3120.2,3119.7,0.80126]
[1644954629184,0.00267018,3120.1,3119.8,0.8012]
[1644954629982,0.0040334,3120.3,3119.8,0.8012]
[1644954630184,0.0040334,3120.3,3119.8,1.60245]
[1644954630630,0.80122,3120.1,3119.8,1.60245]
[1644954630830,4.09945651,3120.1,3119.8,0.8012]
[1644954631036,4.09945651,3120.1,3119.4,0.40415]
[1644954631037,0.80122,3120.1,3119.4,0.40415]
[1644954631430,0.80122,3120.1,3119.4,0.40612934]
[1644954631629,0.80122,3120.1,3119.4,0.00197934]
[1644954632029,0.80122,3120.1,3119.7,0.8014]
[1644954632230,1.1603334,3120.3,3119.7,0.8014]
[1644954632430,0.0040334,3120.3,3119.7,0.8014]
[1644954632630,1.36504749,3120.2,3119.0,2.03767761]
[1644954632831,1.36504749,3120.2,3119.4,0.00277861]
[1644954633033,0.3,3120.2,3119.7,0.80137]
[1644954633234,0.80121,3120.1,3119.4,0.00277861]
[1644954633636,0.80121,3120.1,3119.0,2.03767761]
[1644954633834,0.99197182,3119.8,3119.4,0.00277857]
[1644954634033,0.99197182,3119.8,3119.4,0.80421857]
[1644954634888,2.59483532,3119.8,3119.4,0.80144]
[1644954635087,2.59483532,3119.8,3119.4,0.80421853]
[1644954635890,0.80144,3119.7,3119.4,0.80421853]
[1644954636087,0.80144,3119.7,3119.4,0.80144]
[1644954636290,0.80144,3119.7,3119.4,0.80421853]
[1644954637288,0.80144,3119.7,3119.4,0.80144]
[1644954637487,0.80144,3119.7,3119.4,0.80417869]
[1644954638334,0.80144,3119.7,3119.4,0.80144]
[1644954638736,0.80144,3119.7,3119.4,0.80417869]
[1644954638935,0.80144,3119.7,3119.5,0.80133]
[1644954643079,0.80144,3119.7,3119.4,0.80421853]
[1644954643281,0.80144,3119.7,3119.4,0.80144]
[1644954643481,0.80144,3119.7,3119.4,0.80421853]
[1644954643683,0.8014,3119.6,3119.4,0.80421853]
[1644954644087,1.1014,3119.6,3119.4,0.80421853]
[1644954644383,4.4510264,3119.6,3119.4,0.80144]
[1644954644583,1.1014,3119.6,3119.4,0.80144]
[1644954646034,2.25549914,3119.6,3119.4,0.80144]
[1644954646639,1.95549914,3119.6,3119.4,0.80144]
[1644954647036,2.25549914,3119.6,3119.4,0.80144]
[1644954647636,3.34865158,3119.5,3119.4,0.80144]
[1644954647835,3.34865158,3119.5,3119.3,1.60557859]
[1644954647836,4.45019158,3119.5,3119.3,1.60557859]
[1644954648037,4.45019158,3119.5,3118.9,0.80887761]
[1644954648038,4.64307628,3119.4,3118.9,0.80887761]
[1644954648236,5.0,3119.3,3118.8,0.80887761]
[1644954648438,5.0,3119.3,3118.4,0.80887761]
[1644954648439,4.85054441,3119.2,3118.4,0.80887761]
[1644954648636,7.74586441,3119.2,3118.4,0.80887761]
[1644954648835,9.64939441,3119.2,3118.4,0.80887761]
[1644954649035,9.64939441,3119.2,3118.4,0.80176]
[1644954649036,1.05437732,3118.7,3118.4,0.80176]
[1644954649291,1.9035117,3118.7,3118.4,0.80176]
[1644954649490,1.9035117,3118.7,3118.6,0.00277904]
[1644954650289,1.6035117,3118.7,3118.6,0.00277904]
[1644954650588,1.6035117,3118.7,3118.5,0.00277913]
[1644954650789,0.80176,3118.7,3118.5,0.00277913]
[1644954651189,4.12524858,3118.7,3118.5,0.00277913]
[1644954651391,3.38090428,3118.6,3118.5,0.00277913]
[1644954651589,3.38090428,3118.6,3118.4,0.80176]
[1644954651994,3.38090428,3118.6,3118.4,0.80453916]
[1644954652192,3.68090428,3118.6,3118.4,0.80453916]
[1644954652492,0.3,3118.6,3118.4,0.80453916]
[1644954652934,0.3,3118.6,3118.4,0.80176]
[1644954653532,0.3,3118.6,3118.4,1.61063761]
[1644954655236,0.3,3118.6,3118.4,0.80176]
[1644954655536,2.328,3119.5,3118.6,0.22664079]
[1644954655734,2.328,3119.5,3118.7,1.61387305]
[1644954655935,2.328,3119.5,3118.7,0.80147]
[1644954656135,1.1937,3119.7,3118.7,0.80147]
[1644954656336,1.1937,3119.7,3118.7,1.61387305]
[1644954656538,2.05512005,3119.7,3118.7,1.61387305]
[1644954656785,0.3,3119.3,3118.9,0.80423885]
[1644954656985,1.10149,3119.3,3118.9,0.80423885]
[1644954657286,1.10149,3119.3,3118.9,0.98489056]
[1644954657682,1.10149,3119.3,3118.9,1.02712691]
[1644954657883,1.10149,3119.3,3118.9,0.80423885]
[1644954658083,1.10149,3119.3,3119.0,0.23349735]
[1644954658281,1.10149,3119.3,3119.0,1.03501735]
[1644954658485,0.80149,3119.3,3119.0,1.03501735]
[1644954658685,0.3,3119.2,3119.0,1.03501735]
[1644954659283,0.3,3119.2,3119.0,1.03779617]
[1644954659483,0.80137,3119.4,3119.1,0.8014]
[1644954659689,0.80137,3119.4,3119.1,0.80138]
[1644954660282,0.80137,3119.4,3119.1,0.80335956]
[1644954660539,0.80137,3119.4,3119.1,1.60479956]
[1644954660738,0.79992299,3119.4,3119.1,0.80335956]
[1644954661140,1.60138759,3119.4,3119.1,0.80138]
[1644954661540,1.60138759,3119.4,3119.1,0.8032762]
[1644954662445,1.60138759,3119.4,3119.1,0.80138]
[1644954662640,1.60138759,3119.4,3119.1,0.80407339]
[1644954663641,0.3,3119.3,3119.1,0.80138]
[1644954663841,0.3,3119.3,3119.1,0.80407339]
[1644954664890,0.3,3119.3,3119.1,0.80138]
[1644954664891,1.1016,3119.3,3119.1,0.80138]
[1644954665088,1.1016,3119.3,3119.0,0.80434588]
[1644954665284,0.80166,3119.2,3119.0,0.80434588]
[1644954665483,1.6033318,3119.2,3119.0,0.80434588]
[1644954665684,0.3,3119.1,3119.0,0.80434588]
[1644954665885,0.3,3119.1,3119.0,0.00268588]
[1644954666088,0.3,3119.1,3118.7,1.60329]
[1644954666286,0.80163,3119.0,3118.9,0.80431597]
[1644954666685,1.10163,3119.0,3118.9,0.80431597]
[1644954666886,1.10163,3119.0,3118.9,0.00268597]
[1644954667187,1.10163,3119.0,3118.7,1.60329]
[1644954667591,1.10163,3119.0,3118.8,0.00268603]
[1644954667789,1.90329,3119.0,3118.8,0.00268603]
[1644954668039,2.7049079,3119.0,3118.8,0.00268603]
[1644954668443,2.7049079,3119.0,3118.7,1.60329]
[1644954668640,1.9032479,3119.0,3118.7,1.60329]
[1644954668841,1.9032479,3119.0,3118.7,1.6057995]
[1644954669541,2.7049079,3119.0,3118.7,1.6057995]
[1644954669840,2.7049079,3119.0,3118.7,1.60579952]
[1644954670348,0.3,3118.9,3118.7,1.60579952]
[1644954671044,0.3,3118.9,3118.7,1.60329]
[1644954671245,1.9032479,3119.0,3118.7,1.60329]
[1644954671448,1.10163,3119.0,3118.7,1.60329]
[1644954671697,1.1256,3119.9,3118.7,5.94985438]
[1644954671990,1.1256,3119.9,3118.9,0.20459897]
[1644954671991,1.36530101,3119.8,3118.9,0.20459897]
[1644954672190,1.1256,3119.9,3119.0,3.67949305]
[1644954672388,1.1256,3119.9,3119.0,3.05554959]
[1644954672389,1.36525709,3119.8,3119.0,3.05554959]
[1644954672589,1.36525709,3119.8,3119.1,0.00252119]
[1644954672791,0.80136,3119.5,3119.1,0.00252119]
[1644954673390,0.80136,3119.5,3119.0,3.05557959]
[1644954673590,0.80136,3119.5,3119.3,0.80138]
[1644954675831,1.6028104,3119.5,3119.3,0.80138]
[1644954679287,2.55751017,3119.5,3119.3,0.80138]
[1644954679885,0.3,3119.4,3119.3,0.80138]
[1644954680083,0.3,3119.4,3119.2,0.00252037]
[1644954680084,1.1016,3119.4,3119.2,0.00252037]
[1644954680284,1.36542559,3119.3,3119.2,0.00252037]
[1644954680483,1.36542559,3119.3,3118.6,0.00097851]
[1644954680484,2.16702559,3119.3,3118.6,0.00097851]
[1644954680684,0.90058265,3118.8,3118.6,0.00097851]
[1644954681484,2.50401915,3118.8,3118.6,0.00097851]
[1644954681784,2.80401915,3118.8,3118.6,0.00097851]
[1644954682383,2.80401915,3118.8,3118.6,0.80268851]
[1644954682583,3.60575915,3118.8,3118.6,0.80268851]
[1644954682782,2.80401915,3118.8,3118.6,0.80268851]
[1644954685445,1.10172,3118.8,3118.6,0.80268851]
[1644954689986,1.10023722,3118.8,3118.6,0.80268851]
[1644954691045,1.10023722,3118.8,3118.6,1.60424851]
[1644954692137,1.10023722,3118.8,3118.6,1.79298357]
[1644954692339,1.10023722,3118.8,3118.6,2.60538662]
[1644954692540,1.10023722,3118.8,3118.6,1.60424851]
[1644954692739,0.80172,3118.8,3118.6,1.60424851]
[1644954692942,0.80147,3119.0,3118.6,2.41665156]
[1644954693139,1.90301,3119.3,3118.9,0.80149]
[1644954693341,0.3,3119.2,3118.9,0.80149]
[1644954693842,0.3,3119.2,3118.9,0.80401057]
[1644954694287,1.10149,3119.2,3118.9,1.83004258]
[1644954694690,0.80149,3119.2,3118.9,1.83004258]
[1644954694889,1.1703,3119.8,3119.0,0.18361705]
[1644954695090,1.36528675,3119.7,3119.0,0.9960201]
[1644954695288,1.36528675,3119.7,3119.1,0.80135]
[1644954696089,0.80135,3119.5,3119.1,0.80135]
[1644954696290,0.80135,3119.5,3119.2,0.00251838]
[1644954696488,0.80135,3119.5,3119.3,0.80137]
[1644954696889,0.80135,3119.5,3119.3,1.60273]
[1644954698234,0.80135,3119.5,3119.3,0.80137]
[1644954699034,2.2027921,3119.5,3119.3,0.80137]
[1644954702883,1.36537353,3119.4,3119.3,0.80137]
[1644954703988,1.36537353,3119.4,3119.2,0.0025211]
[1644954704184,0.80159,3119.3,3119.2,0.0025211]
[1644954704384,0.80159,3119.3,3119.1,0.80158]
[1644954704585,1.6031789,3119.4,3119.1,0.80158]
[1644954704786,0.3,3119.3,3119.1,0.00252038]
[1644954704985,1.66544966,3119.3,3119.1,0.00252038]
[1644954705187,3.0048441,3119.3,3119.1,0.00252038]
[1644954705638,3.0048441,3119.3,3118.6,1.60422851]
[1644954705639,1.36550464,3119.2,3118.6,1.60422851]
[1644954705840,2.96891874,3119.2,3118.6,0.00097851]
[1644954706045,1.36550464,3119.1,3119.0,0.00252043]
[1644954706339,1.66550464,3119.1,3119.0,0.00252043]
[1644954706940,1.97090763,3119.0,3118.6,0.00097851]
[1644954707141,1.36550464,3118.9,3118.6,0.00097851]
[1644954708341,3.77067074,3118.9,3118.6,0.00349924]
[1644954708542,0.3,3118.8,3118.6,0.00349924]
[1644954708741,0.6,3118.8,3118.6,0.00349924]
[1644954709290,2.2034627,3118.8,3118.6,0.00349924]
[1644954709495,21.90392932,3118.8,3118.6,0.00097851]
[1644954709691,20.12572364,3118.7,3118.6,0.00097851]
[1644954709890,21.12572364,3118.7,3118.6,0.00097851]
[1644954710490,3.16753364,3118.7,3118.6,0.00097851]
[1644954710693,2.16753364,3118.7,3118.6,0.00097851]
[1644954710889,3.57169932,3118.8,3118.6,0.00097851]
[1644954711090,2.2034627,3118.8,3118.6,0.00097851]
[1644954711696,1.10173,3118.8,3118.6,0.00097851]
[1644954712491,1.10078328,3118.8,3118.6,0.00097851]
[1644954714637,1.90242368,3118.8,3118.6,0.00097851]
[1644954715041,1.36572063,3118.7,3118.6,0.00097851]
[1644954716892,5.03761889,3118.7,3118.6,0.00097851]
[1644954717088,1.66572063,3118.7,3118.6,0.00097851]
[1644954717790,0.3,3118.7,3118.6,0.00097851]
[1644954717989,0.3,3118.7,3118.5,0.00430583]
[1644954717990,0.00032334,3118.6,3118.5,0.00430583]
[1644954718190,0.00032334,3118.6,3118.5,0.00683921]
[1644954718390,0.30032334,3118.6,3118.5,0.00683921]
[1644954718992,0.30032334,3118.6,3118.5,0.00430583]
[1644954719192,0.00032334,3118.6,3118.5,0.00430583]
[1644954720436,1.36608277,3118.6,3118.5,0.00430583]
[1644954720638,1.36608277,3118.6,3118.4,0.00266218]
[1644954720639,20.72608277,3118.6,3118.4,0.00266218]
[1644954720838,21.92765943,3118.5,3118.4,0.00266218]
[1644954721139,21.92765943,3118.5,3118.4,6.218e-05]
[1644954721336,0.0008,3118.3,3117.5,1.60386]
[1644954721536,1.6046796,3118.3,3117.6,0.80196]
[1644954721736,1.02460547,3117.7,3117.6,0.80196]
[1644954722039,1.02460547,3117.7,3117.5,1.60386]
[1644954722235,1.32460547,3117.7,3117.5,1.60386]
[1644954722438,0.3,3117.7,3117.5,1.60386]
[1644954723236,0.6,3117.7,3117.4,0.80191]
[1644954723437,0.98410287,3117.6,3117.4,0.80191]
[1644954724511,1.78616287,3117.6,3117.4,0.80191]
[1644954724908,0.96750552,3117.6,3117.4,0.80191]
[1644954725511,0.96750552,3117.6,3116.7,1.04031602]
[1644954725714,22.723,3117.5,3116.4,0.81240305]
[1644954725911,22.723,3117.5,3116.0,2.03141799]
[1644954725912,20.12634032,3117.4,3116.0,2.03141799]
[1644954726117,18.76,3117.2,3115.9,0.81240305]
[1644954726312,18.76,3117.0,3115.8,0.81240305]
[1644954726510,6.32934032,3117.1,3115.7,2.03700305]
[1644954726511,1.463,3117.1,3115.7,2.03700305]
[1644954726712,0.80223,3116.3,3115.7,2.03700305]
[1644954726912,0.80223,3116.3,3115.7,2.25648266]
[1644954727110,0.3,3117.0,3115.9,0.18706148]
[1644954727314,0.3,3117.0,3115.9,1.61476305]
[1644954727514,0.80228,3116.8,3116.0,0.19887857]
[1644954727815,0.80216,3116.5,3115.8,0.00268373]
[1644954728038,0.8022747,3116.4,3115.9,0.1801869]
[1644954728239,0.6,3116.8,3115.9,0.99258995]
[1644954728441,2.40694,3117.6,3116.0,1.84551903]
[1644954728442,1.9534,3117.1,3116.0,1.84551903]
[1644954728740,5.48356963,3117.6,3116.4,1.60402]
[1644954728940,2.0699,3117.6,3116.6,0.22749149]
[1644954729145,0.93798626,3117.0,3116.6,0.22749149]
[1644954729341,0.93798626,3117.0,3116.0,0.00268364]
[1644954729541,1.16475124,3116.3,3116.0,0.22512684]
[1644954729743,1.46475124,3116.3,3115.7,0.81240305]
[1644954729946,1.46475124,3116.3,3116.0,1.60441]
[1644954730146,0.3,3116.3,3116.0,1.60441]
[1644954730343,0.3,3116.3,3116.1,0.18995799]
[1644954730344,1.10229,3116.3,3116.1,0.18995799]
[1644954730543,0.3,3116.3,3116.1,0.18995799]
[1644954730742,1.0,3117.1,3116.1,0.18995799]
[1644954730944,1.36958414,3117.2,3116.1,0.18995799]
[1644954731145,5.18494482,3117.2,3116.4,0.80214]
[1644954731345,1.01281962,3116.7,3116.4,0.80214]
[1644954731543,2.41496962,3116.7,3116.4,0.80214]
[1644954732391,5.78488354,3116.7,3116.4,0.80467262]
[1644954732596,2.41496962,3116.7,3116.4,0.80467262]
[1644954732791,3.21713932,3116.7,3116.4,0.00253262]
[1644954732991,3.21713932,3116.7,3116.3,1.60428]
[1644954732992,2.35,3116.6,3116.3,1.60428]
[1644954733392,2.35,3116.6,3116.0,0.8023]
[1644954733693,1.1023,3116.5,3116.0,0.8023]
[1644954733892,1.1022802,3116.4,3116.0,0.8023]
[1644954734094,1.90452,3116.4,3116.0,0.8023]
[1644954734497,0.80226,3116.3,3115.6,1.60467]
[1644954734693,0.9113569,3115.7,3115.6,1.60467]
[1644954734894,0.3,3115.8,3115.6,1.60467]
[1644954735098,5.4828,3116.6,3115.6,1.60467]
[1644954735293,0.3,3116.6,3115.6,1.60467]
[1644954735555,0.49537947,3116.6,3115.6,1.60467]
[1644954735758,5.028,3116.7,3115.6,1.60467]
[1644954735759,0.96158651,3116.5,3115.6,1.60467]
[1644954735959,0.96158651,3116.5,3115.9,0.00253058]
[1644954736157,1.60457,3116.3,3115.9,0.80476058]
[1644954736357,1.60457,3116.3,3116.0,0.00423488]
[1644954736759,1.60457,3116.3,3115.9,0.00253058]
[1644954736960,1.60457,3116.3,3115.8,0.00423488]
[1644954736961,1.90457,3116.3,3115.8,0.00423488]
[1644954737161,0.80225,3116.2,3116.0,0.00253056]
[1644954737361,0.80225,3116.2,3116.0,0.80478056]
[1644954737560,0.80225,3116.2,3116.0,0.80901544]
[1644954738161,0.3,3116.1,3116.0,0.80648488]
[1644954738361,0.3,3116.1,3116.0,0.00423488]
[1644954741086,0.80225,3116.2,3116.0,0.00423488]
[1644954741388,0.3,3116.1,3116.0,0.00423488]
[1644954742189,0.80225,3116.2,3116.0,0.00423488]
[1644954742587,0.96158651,3116.5,3116.0,0.00423488]
[1644954742788,0.80215,3116.4,3116.0,0.20552791]
[1644954743042,0.96158651,3116.5,3116.1,0.00423488]
[1644954743240,1.9828,3117.1,3116.1,0.00423488]
[1644954743241,1.9828,3117.1,3116.1,1.83089617]
[1644954743441,1.6041574,3117.3,3116.4,0.022063]
[1644954743442,1.74709014,3117.3,3116.4,0.022063]
[1644954743640,1.60408,3117.1,3116.4,0.022063]
[1644954743846,1.60408,3117.1,3116.4,0.02629788]
[1644954744642,0.9713617,3116.9,3116.4,0.02629788]
[1644954744842,0.9713617,3116.9,3116.6,0.80204]
[1644954744843,2.0734417,3116.9,3116.6,0.80204]
[1644954745043,2.0734417,3116.9,3116.7,0.00423488]
[1644954746045,3.1755555,3116.9,3116.7,0.00423488]
[1644954746246,2.8755555,3116.9,3116.7,0.00423488]
[1644954746445,3.1755555,3116.9,3116.7,0.00423488]
[1644954746687,2.8755555,3116.9,3116.7,0.00423488]
[1644954750190,3.9777655,3116.9,3116.7,0.00423488]
[1644954750451,4.35250997,3116.8,3116.7,0.00423488]
[1644954750642,4.35250997,3116.8,3116.5,0.00423488]
[1644954750643,0.00875159,3116.6,3116.5,0.00423488]
[1644954750845,0.81109739,3116.6,3116.4,0.022063]
[1644954751044,19.06,3116.5,3116.4,0.022063]
[1644954751246,19.06,3116.5,3116.4,6.3e-05]
[1644954751443,20.523,3116.5,3116.4,6.3e-05]
[1644954752642,20.523,3116.5,3115.3,0.00423488]
[1644954752844,18.76,3116.1,3115.3,0.00423488]
[1644954753043,0.80251,3115.9,3115.0,0.00423488]
[1644954753243,1.01065401,3115.1,3115.0,0.00423488]
[1644954753645,0.3,3115.1,3115.0,0.00423488]
[1644954754046,0.8025,3115.2,3115.0,0.00423488]
[1644954754292,1.2975,3115.1,3114.8,0.80674488]
[1644954754494,0.5484,3115.1,3114.8,0.80674488]
[1644954755093,1.61139446,3115.1,3114.8,0.80674488]
[1644954755291,0.8026067,3115.0,3114.8,0.80674488]
[1644954756293,0.3,3115.0,3114.8,0.80674488]
[1644954756496,0.9828,3115.0,3114.8,0.00423488]
[1644954756699,1.2828,3115.0,3114.8,0.00423488]
[1644954756894,1.2828,3115.0,3114.7,0.00277803]
[1644954757098,2.08547,3115.0,3114.7,0.00277803]
[1644954757495,2.08547,3115.0,3114.4,0.00423488]
[1644954757496,1.6054324,3114.9,3114.4,0.00423488]
[1644954757696,1.74507687,3114.9,3114.7,0.00277806]
[1644954757943,1.25436818,3114.8,3114.7,0.00277806]
[1644954758343,2.25436818,3114.8,3114.7,0.00277806]
[1644954758744,2.25436818,3114.8,3114.4,0.80701488]
[1644954759040,2.25436818,3114.8,3114.6,0.00277812]
[1644954759041,4.45107259,3114.7,3114.6,0.00277812]
[1644954759244,5.1861797,3114.7,3114.6,0.00277812]
[1644954759442,6.1861797,3114.7,3114.6,0.00277812]
[1644954759642,1.4027532,3114.7,3114.6,0.00277812]
[1644954759842,0.6,3114.7,3114.5,0.00421574]
[1644954760045,1.10264,3114.7,3114.5,0.00421574]
[1644954760342,1.10264,3114.7,3114.5,0.00699393]
[1644954760745,0.95275212,3114.6,3114.5,0.00699393]
[1644954760944,1.25275212,3114.6,3114.5,0.00421574]
[1644954761145,2.05554212,3114.6,3114.3,1.84782715]
[1644954761353,2.05554212,3114.6,3114.4,0.00277822]
[1644954761545,3.05554212,3114.6,3114.4,0.00277822]
[1644954761794,3.57629351,3114.5,3114.4,0.00277822]
[1644954762192,3.87629351,3114.5,3114.2,0.00421574]
[1644954762492,5.48188711,3114.5,3114.3,0.00277831]
[1644954762797,1.9055936,3114.5,3114.3,0.00277831]
[1644954762993,0.3,3114.5,3114.3,0.80556831]
[1644954763393,0.8026487,3114.8,3114.4,0.22975589]
[1644954763593,0.8026487,3114.8,3114.5,0.00421574]
[1644954763795,1.10261,3114.7,3114.5,0.00421574]
[1644954764000,1.10261,3114.7,3114.4,1.60531]
[1644954764001,2.0486309,3114.7,3114.4,1.60531]
[1644954764396,2.0486309,3114.7,3114.5,0.00421574]
[1644954764796,2.8513183,3114.7,3114.5,0.00421574]
[1644954765199,5.259594,3114.7,3114.5,0.00421574]
[1644954765437,1.60556,3114.6,3114.4,0.00277825]
[1644954765637,1.60556,3114.6,3114.4,0.00699399]
[1644954765840,1.60556,3114.6,3114.4,0.00421574]
[1644954768244,1.90556,3114.6,3114.4,0.00421574]
[1644954770390,2.90556,3114.6,3114.4,0.00421574]
[1644954770992,6.24703568,3114.6,3114.4,0.00421574]
[1644954771491,2.90556,3114.6,3114.4,0.00421574]
[1644954771695,6.23729076,3114.6,3114.4,0.00421574]
[1644954771992,6.26659744,3114.6,3114.4,0.00421574]
[1644954772292,3.62735906,3114.5,3114.4,0.00421574]
[1644954772700,0.0026,3114.3,3113.9,0.01071528]
[1644954772947,24.78970383,3114.3,3113.9,0.01071528]
[1644954773144,24.75343518,3114.3,3113.3,0.98337527]
[1644954773346,1.0,3114.2,3113.3,0.98337527]
[1644954773550,5.01827721,3114.1,3113.3,0.98337527]
[1644954773747,18.76,3113.9,3113.3,0.8022]
[1644954773945,0.80324,3113.7,3113.3,0.8022]
[1644954774146,3.64936232,3113.6,3113.1,3.1057]
[1644954774352,1.0,3113.5,3112.6,0.19658513]
[1644954774547,3.93399268,3113.4,3112.2,4.5736]
[1644954774751,3.93399268,3113.4,3112.7,0.04149492]
[1644954774947,1.03122632,3112.8,3112.7,0.04149492]
[1644954775249,0.3,3113.6,3112.7,0.04149492]
[1644954775250,5.4644,3113.9,3112.7,0.04149492]
[1644954775547,5.4644,3113.9,3112.9,0.18573292]
[1644954775548,3.0547,3113.9,3112.9,0.18573292]
[1644954775747,2.84175712,3114.0,3112.9,0.18573292]
[1644954776050,0.25,3114.0,3113.2,1.02338965]
[1644954776251,0.86982551,3114.1,3113.2,1.02338965]
[1644954776252,0.8028,3113.9,3113.3,0.20071511]
[1644954776690,0.8028,3113.9,3113.0,0.18423336]
[1644954777094,0.8028,3113.9,3113.4,0.00277485]
[1644954777893,0.8029156,3113.8,3113.4,0.80291]
[1644954778092,0.80293,3113.7,3113.5,0.00277482]
[1644954778295,1.10293,3113.7,3113.5,0.00277482]
[1644954778493,1.10103962,3113.6,3113.5,0.00277482]
[1644954779093,1.10103962,3113.6,3113.3,1.84027387]
[1644954779293,1.90399962,3113.6,3113.4,0.00197161]
[1644954779694,0.3,3113.5,3113.4,0.00197161]
[1644954780096,1.1029731,3113.5,3113.4,0.00197161]
[1644954780295,1.1029731,3113.5,3113.3,1.84027387]
[1644954780542,1.1029731,3113.5,3113.3,1.84211252]
[1644954781542,1.1029731,3113.5,3113.3,1.84027387]
[1644954783943,1.1029731,3113.5,3113.3,1.60582]
[1644954785397,1.9060431,3113.5,3113.3,1.55582]
[1644954785799,1.9060431,3113.5,3113.2,0.00251238]
[1644954785800,3.52985133,3113.4,3113.2,0.00251238]
[1644954786000,4.33309913,3113.4,3113.2,0.00251238]
[1644954786200,3.88577214,3113.3,3113.2,0.00251238]
[1644954786401,4.18577214,3113.3,3112.8,0.48153625]
[1644954786600,4.18577214,3113.3,3113.1,0.00251244]
[1644954786601,5.79212774,3113.3,3113.1,0.00251244]
[1644954786800,5.35865601,3113.2,3113.1,0.00251244]
[1644954787000,6.46186601,3113.2,3113.1,0.00251244]
[1644954787500,0.8032197,3113.1,3112.9,0.04035807]
[1644954787703,3.54778933,3113.0,3112.9,0.04035807]
[1644954787943,3.54778933,3113.0,3112.8,0.48571212]
[1644954787944,5.95103933,3113.0,3112.8,0.48571212]
[1644954788143,3.36024868,3112.9,3112.8,0.48571212]
[1644954789444,4.36024868,3112.9,3112.8,0.48571212]
[1644954789847,4.36024868,3112.9,3112.5,1.60635]
[1644954789848,6.4,3112.8,3112.5,0.48571212]
[1644954790044,5.89947592,3112.7,3112.1,0.80339]
[1644954790244,6.19947592,3112.7,3112.2,0.01008775]
[1644954790447,0.47016605,3112.6,3111.8,3.2719]
[1644954790649,0.47016605,3112.6,3111.5,1.8241437]
[1644954790650,4.03684767,3112.5,3111.5,1.8241437]
[1644954790851,0.80341,3112.3,3111.5,1.8241437]
[1644954791048,1.07074337,3112.1,3111.5,1.8241437]
[1644954791251,3.48101407,3112.1,3111.5,1.8241437]
[1644954791550,3.63317958,3112.0,3111.5,1.60686]
[1644954791800,3.93317958,3112.0,3111.5,1.60686]
[1644954792093,0.80349,3111.9,3111.5,1.60686]
[1644954792292,0.3,3111.8,3111.5,1.60686]
[1644954792502,0.80349,3111.9,3111.5,1.60686]
[1644954792694,0.80349,3111.9,3111.6,0.0017221]
[1644954793491,0.80349,3111.9,3111.5,1.83219317]
[1644954793792,1.09386717,3111.6,3111.5,1.60686]
[1644954794792,1.09386717,3111.6,3111.5,1.82747857]
[1644954795193,1.09386717,3111.6,3111.5,1.60686]
[1644954795643,1.09386717,3111.6,3111.5,1.55686]
[1644954795847,4.55121737,3111.6,3111.5,1.55686]
[1644954796046,4.55121737,3111.6,3111.0,0.23881008]
[1644954796047,1.10355,3111.5,3111.0,0.23881008]
[1644954796244,1.10355,3111.5,3111.4,0.00252331]
[1644954796445,4.66807802,3111.5,3111.4,0.00252331]
[1644954797143,1.10355,3111.5,3110.6,0.17415052]
[1644954797344,0.98446837,3110.7,3110.6,0.17415052]
[1644954797549,0.53112797,3110.7,3110.6,0.17415052]
[1644954797946,0.53112797,3110.7,3110.1,1.60757]
[1644954798346,1.60768,3110.6,3110.2,0.20140282]
[1644954798546,2.41155,3111.0,3110.2,1.00522282]
[1644954798850,3.5673935,3111.4,3110.2,1.00522282]
[1644954798851,4.5,3111.3,3110.3,0.20431191]
[1644954799046,0.3,3110.9,3110.3,1.76141191]
[1644954799297,3.8,3111.3,3110.5,0.20384363]
[1644954799497,1.12138599,3110.6,3110.5,0.20384363]
[1644954799897,1.12138599,3110.6,3110.5,1.00739363]
[1644954800102,1.12138599,3110.6,3110.5,0.99579228]
[1644954801298,1.92513599,3110.6,3110.5,0.99579228]
[1644954802401,1.92513599,3110.6,3110.5,1.02097533]
[1644954803743,1.92513599,3110.6,3110.5,0.97097533]
[1644954804346,1.92513599,3110.6,3110.5,0.77873305]
[1644954804544,1.92513599,3110.6,3110.5,0.02518305]
[1644954806548,1.92513599,3110.6,3110.5,0.20208476]
[1644954807215,1.92513599,3110.6,3110.5,0.23791303]
[1644954807413,1.92513599,3110.6,3110.5,0.06101132]
[1644954807818,1.92513599,3110.6,3110.5,0.27679058]
[1644954808314,1.92513599,3110.6,3110.5,0.06101132]
[1644954808714,6.15,3110.5,3110.4,0.00690823]
[1644954809015,7.50389,3110.4,3109.9,0.01108589]
[1644954809213,7.50389,3110.4,3108.7,1.27540305]
[1644954809214,4.15367132,3110.3,3109.0,0.17858231]
[1644954809615,0.97759183,3109.2,3109.0,0.17858231]
[1644954809814,0.3,3110.3,3109.0,0.17858231]
[1644954810016,3.70517635,3110.3,3109.0,0.17858231]
[1644954810218,3.73063514,3110.3,3109.0,0.17858231]
[1644954810456,0.8039581,3110.0,3109.1,0.80392]
[1644954810651,0.80392,3109.7,3109.2,1.00330614]
[1644954810850,1.14624774,3109.6,3109.4,0.22971387]
[1644954811053,4.46562608,3109.6,3109.4,0.23757034]
[1644954811253,1.14624774,3109.6,3109.4,0.23757034]
[1644954811654,1.95023624,3109.6,3109.4,0.23841826]
[1644954812052,3.55827624,3109.6,3109.4,1.04241826]
[1644954813251,3.55827624,3109.6,3109.4,0.804]
[1644954813451,3.55827624,3109.6,3109.4,0.97468705]
[1644954813651,3.55827624,3109.6,3109.4,0.804]
[1644954813851,3.55827624,3109.6,3109.4,1.00600041]
[1644954814501,2.75428774,3109.6,3109.4,1.00600041]
[1644954815202,2.75428774,3109.6,3109.4,0.804]